bitfinex/quotes_BTCUSD_20250127
["timestamp","ask_amount","ask_price","bid_price","bid_amount"]
[1737985278197,0.49854184,101110.0,101100.0,0.00358073]
[1737985278403,0.58788913,101110.0,101100.0,0.00258073]
[1737985278806,0.61514178,101110.0,101100.0,0.00258073]
[1737985279655,0.64021074,101110.0,101100.0,0.00258073]
[1737985279831,0.64321074,101110.0,101100.0,0.00258073]
[1737985280417,0.58788913,101110.0,101100.0,0.00258073]
[1737985280568,0.59688913,101110.0,101100.0,0.00358073]
[1737985280781,0.62314178,101110.0,101100.0,0.00358073]
[1737985280982,0.307353,101110.0,101100.0,0.15194773]
[1737985281182,0.009,101110.0,101100.0,0.15194773]
[1737985282210,0.17618884,101110.0,101100.0,0.15194773]
[1737985282402,0.007,101110.0,101100.0,0.15194773]
[1737985282614,0.17618884,101110.0,101100.0,0.15194773]
[1737985283065,0.16918884,101110.0,101100.0,0.15094773]
[1737985283268,0.31753484,101120.0,101100.0,0.15094773]
[1737985283479,0.16918884,101110.0,101100.0,0.34876173]
[1737985283681,0.31753484,101120.0,101110.0,0.148353]
[1737985283895,0.51529384,101130.0,101120.0,0.148338]
[1737985284111,0.496105,101130.0,101120.0,0.148338]
[1737985284331,0.36691784,101150.0,101130.0,0.148323]
[1737985284543,0.345972,101170.0,101150.0,0.346008]
[1737985284766,0.148279,101160.0,101140.0,0.54376]
[1737985284967,0.148279,101160.0,101140.0,0.741494]
[1737985285180,0.81020913,101170.0,101150.0,0.543735]
[1737985285405,0.148298,101150.0,101140.0,0.197741]
[1737985285639,0.51522284,101150.0,101140.0,0.148309]
[1737985285852,0.31748684,101150.0,101140.0,0.148309]
[1737985286294,0.148298,101150.0,101140.0,0.148309]
[1737985286517,0.148298,101150.0,101140.0,0.15078963]
[1737985286921,0.148298,101150.0,101140.0,0.00248063]
[1737985287350,1.00797613,101160.0,101140.0,0.34853163]
[1737985287593,0.81025813,101160.0,101140.0,0.34853163]
[1737985287793,0.148294,101150.0,101140.0,0.15078963]
[1737985288052,0.71291084,101160.0,101140.0,0.34853263]
[1737985288266,0.44206597,101150.0,101140.0,0.00248063]
[1737985288466,0.73818278,101150.0,101140.0,0.00248063]
[1737985288651,0.39553,101130.0,101100.0,0.48423436]
[1737985288819,0.543865,101130.0,101110.0,0.34625022]
[1737985288986,0.543865,101130.0,101110.0,0.54405422]
[1737985289387,0.543835,101140.0,101120.0,0.346114]
[1737985289655,0.346097,101130.0,101110.0,0.54405322]
[1737985289802,0.346097,101130.0,101110.0,0.74184822]
[1737985290198,0.346097,101130.0,101110.0,0.74183722]
[1737985290416,0.148338,101120.0,101110.0,9.822e-05]
[1737985290629,0.58787413,101120.0,101110.0,9.822e-05]
[1737985290843,0.68287413,101120.0,101110.0,9.822e-05]
[1737985291048,0.73682678,101120.0,101110.0,9.822e-05]
[1737985291253,0.75682678,101120.0,101110.0,9.822e-05]
[1737985291662,0.73057413,101120.0,101110.0,0.00049822]
[1737985292093,0.15,101090.0,101080.0,0.34559662]
[1737985292294,0.15,101090.0,101080.0,0.19835823]
[1737985293206,0.298382,101090.0,101080.0,0.19835823]
[1737985293422,0.15,101090.0,101080.0,0.19835823]
[1737985293957,0.346205,101100.0,101080.0,0.34675023]
[1737985294156,0.544038,101100.0,101080.0,0.34675023]
[1737985294383,0.544042,101100.0,101080.0,0.34675023]
[1737985294882,0.346205,101100.0,101080.0,0.54460323]
[1737985295081,0.346205,101100.0,101080.0,0.74245723]
[1737985295284,0.543994,101110.0,101090.0,0.346224]
[1737985295554,0.346197,101100.0,101080.0,0.64195052]
[1737985296144,0.39566,101100.0,101080.0,0.00049623]
[1737985296319,0.148382,101090.0,101080.0,0.00049623]
[1737985297116,0.741882,101100.0,101080.0,0.14889123]
[1737985297334,0.148382,101090.0,101080.0,0.00049623]
[1737985297780,0.148382,101090.0,101080.0,0.00249623]
[1737985297959,0.148382,101090.0,101080.0,0.15089323]
[1737985298166,0.148382,101090.0,101080.0,0.14889323]
[1737985298359,0.148382,101090.0,101080.0,0.00049623]
[1737985298731,0.298382,101090.0,101080.0,0.00049623]
[1737985298931,0.301382,101090.0,101080.0,0.00049623]
[1737985299133,0.59191813,101090.0,101080.0,0.00049623]
[1737985299771,0.61817078,101090.0,101080.0,0.00049623]
[1737985300608,0.325382,101090.0,101080.0,0.00049623]
[1737985300810,0.302382,101090.0,101080.0,0.00063793]
[1737985301620,0.302382,101090.0,101080.0,0.00285312]
[1737985301767,0.302382,101090.0,101080.0,0.00063793]
[1737985301971,0.302382,101090.0,101080.0,0.00285312]
[1737985302816,0.56891813,101090.0,101080.0,0.00285312]
[1737985303021,0.59191813,101090.0,101080.0,0.00285312]
[1737985303397,0.76110697,101090.0,101080.0,0.00285312]
[1737985303603,0.89060697,101090.0,101080.0,0.00285312]
[1737985304200,0.72141813,101090.0,101080.0,0.00285312]
[1737985304386,0.71841813,101090.0,101080.0,0.00285312]
[1737985304812,0.72441813,101090.0,101080.0,0.00285312]
[1737985305017,0.71841813,101090.0,101080.0,0.00285312]
[1737985305232,0.83476542,101090.0,101080.0,0.00285312]
[1737985305443,1.04120691,101090.0,101080.0,0.00285312]
[1737985305856,1.06627587,101090.0,101080.0,0.00063793]
[1737985306086,1.06427587,101090.0,101080.0,0.00287551]
[1737985306260,0.96692858,101090.0,101080.0,0.00063793]
[1737985306464,0.96692858,101090.0,101080.0,0.00287551]
[1737985306668,0.97092858,101090.0,101080.0,0.00063793]
[1737985306908,0.97092858,101090.0,101080.0,0.00287551]
[1737985307125,0.97092858,101090.0,101080.0,0.00063793]
[1737985307331,0.95092858,101090.0,101080.0,0.00287551]
[1737985307529,0.97092858,101090.0,101080.0,0.00063793]
[1737985307970,0.97092858,101090.0,101080.0,0.00287551]
[1737985309439,1.41030858,101090.0,101080.0,0.00212986]
[1737985309639,0.351397,101080.0,101070.0,0.00029715]
[1737985309852,0.78712197,101080.0,101070.0,0.00044607]
[1737985310058,0.83844358,101080.0,101070.0,0.00257593]
[1737985311147,1.23844358,101080.0,101070.0,9.3e-07]
[1737985311347,1.17944658,101080.0,101060.0,0.00029715]
[1737985311504,0.58918429,101070.0,101060.0,0.00044635]
[1737985311707,0.63943907,101070.0,101060.0,0.00044635]
[1737985312736,0.89963521,101070.0,101060.0,0.00044635]
[1737985312940,0.81154637,101070.0,101060.0,0.00044635]
[1737985313146,1.20093907,101070.0,101060.0,0.00044635]
[1737985313342,0.79093907,101070.0,101060.0,0.00044635]
[1737985313618,0.90093907,101070.0,101060.0,0.00044635]
[1737985313820,0.73944713,101070.0,101060.0,0.00044635]
[1737985314022,0.74844713,101070.0,101060.0,0.00044635]
[1737985314181,0.76867487,101070.0,101060.0,0.00044635]
[1737985314378,0.79492752,101070.0,101060.0,0.00044635]
[1737985315305,0.77492752,101070.0,101060.0,0.00044635]
[1737985315687,0.69382752,101070.0,101060.0,0.00044635]
[1737985316721,0.75055986,101070.0,101060.0,0.00044635]
[1737985316889,0.76054609,101070.0,101060.0,0.0025389]
[1737985317725,0.6475855,101070.0,101060.0,0.0025389]
[1737985319013,0.46297226,101070.0,101060.0,0.0025389]
[1737985319527,0.52235226,101070.0,101060.0,0.0025389]
[1737985319703,0.46297226,101070.0,101060.0,0.0025389]
[1737985320169,0.17239723,101070.0,101060.0,0.0025389]
[1737985320388,0.162411,101070.0,101060.0,0.00044635]
[1737985320810,0.162411,101070.0,101060.0,0.00253197]
[1737985321225,0.25975829,101070.0,101060.0,0.00253197]
[1737985322268,0.312411,101070.0,101060.0,0.15095797]
[1737985322486,0.40975829,101070.0,101060.0,0.00253197]
[1737985322913,0.43275829,101070.0,101060.0,0.00253197]
[1737985323146,0.54571888,101070.0,101060.0,0.00253197]
[1737985323374,0.56697153,101070.0,101060.0,0.00253197]
[1737985323596,0.55797153,101070.0,101060.0,0.00253197]
[1737985323812,0.56397153,101070.0,101060.0,0.00253197]
[1737985324264,0.58321082,101070.0,101060.0,0.00253197]
[1737985324479,0.61221082,101070.0,101060.0,0.00253197]
[1737985325271,0.61521082,101070.0,101060.0,0.00253197]
[1737985325506,0.60621082,101070.0,101060.0,0.00253197]
[1737985326011,0.60321082,101070.0,101060.0,0.00253197]
[1737985326262,0.60721082,101070.0,101060.0,0.00253197]
[1737985326756,1.10254394,101070.0,101060.0,0.00253197]
[1737985327003,1.01721082,101070.0,101060.0,0.00253197]
[1737985327242,1.02621082,101070.0,101060.0,0.00253197]
[1737985327486,1.13017141,101070.0,101060.0,0.00253197]
[1737985327746,1.19337141,101070.0,101060.0,0.00044635]
[1737985327957,1.30030763,101070.0,101060.0,0.00253275]
[1737985328136,1.30030763,101070.0,101060.0,0.00044635]
[1737985328347,1.32027787,101070.0,101060.0,0.00253275]
[1737985328789,1.11996999,101070.0,101060.0,0.00253275]
[1737985329001,1.06788912,101070.0,101060.0,0.00253275]
[1737985329205,1.06388912,101070.0,101060.0,0.00253275]
[1737985329539,1.23893058,101070.0,101060.0,0.00253275]
[1737985329765,1.24393058,101070.0,101060.0,0.00253275]
[1737985329937,1.13096999,101070.0,101060.0,0.00253275]
[1737985330565,1.12196999,101070.0,101060.0,0.00253275]
[1737985330761,1.13096999,101070.0,101060.0,0.00253275]
[1737985331068,1.24393058,101070.0,101060.0,0.00253275]
[1737985331387,1.34127787,101070.0,101060.0,0.00253275]
[1737985331976,1.22831728,101070.0,101060.0,0.00253275]
[1737985332157,0.77888912,101070.0,101060.0,0.00253275]
[1737985332589,1.07888912,101070.0,101060.0,0.00253275]
[1737985332790,1.19184971,101070.0,101060.0,0.00253275]
[1737985332998,0.78184971,101070.0,101060.0,0.00253275]
[1737985333342,0.69864971,101070.0,101060.0,0.00253275]
[1737985333560,0.61268229,101070.0,101060.0,0.00253275]
[1737985333686,0.58568912,101070.0,101060.0,0.00253275]
[1737985333884,0.39268912,101070.0,101060.0,0.00253275]
[1737985334092,0.37271888,101070.0,101060.0,0.00253275]
[1737985334717,0.67867947,101070.0,101060.0,0.00253275]
[1737985334934,1.08626257,101070.0,101060.0,0.00044635]
[1737985335505,1.08626257,101070.0,101060.0,0.00209854]
[1737985335506,1.99986257,101070.0,101060.0,0.00209854]
[1737985335813,1.98986257,101070.0,101060.0,0.00209765]
[1737985336030,0.451426,101060.0,101050.0,0.00029736]
[1737985336222,0.66173388,101060.0,101050.0,0.00029736]
[1737985336400,0.75908117,101060.0,101050.0,3.6e-07]
[1737985336607,0.93970486,101060.0,101050.0,3.6e-07]
[1737985336802,0.84441659,101040.0,101030.0,0.00029694]
[1737985337002,1.10640757,101040.0,101030.0,0.00029694]
[1737985338075,1.04472447,101040.0,101030.0,0.00029694]
[1737985338276,1.07171764,101040.0,101030.0,0.00029694]
[1737985338512,1.09171764,101040.0,101030.0,0.00029694]
[1737985338730,1.07171764,101040.0,101030.0,0.00029694]
[1737985339094,0.55176388,101040.0,101030.0,0.00029694]
[1737985339242,0.69329555,101040.0,101030.0,0.00029694]
[1737985339593,0.56733496,101040.0,101030.0,0.00029694]
[1737985339746,0.56733496,101040.0,101030.0,0.00237455]
[1737985339945,0.56733496,101040.0,101030.0,0.00029694]
[1737985340147,0.78064949,101040.0,101030.0,0.00237455]
[1737985340555,0.78564949,101040.0,101030.0,0.00237455]
[1737985341052,0.6883022,101040.0,101030.0,0.00237455]
[1737985341254,0.6793022,101040.0,101030.0,0.00237455]
[1737985342407,0.6883022,101040.0,101030.0,0.00237455]
[1737985343134,0.57534161,101040.0,101030.0,0.00237455]
[1737985343381,0.6883022,101040.0,101030.0,0.00237455]
[1737985343581,0.71529537,101040.0,101030.0,0.00237455]
[1737985344188,1.13529537,101040.0,101030.0,0.00237455]
[1737985344750,1.13529537,101040.0,101030.0,0.00029694]
[1737985344956,1.39363259,101040.0,101030.0,9.4e-07]
[1737985345164,0.298485,101020.0,101010.0,0.00029736]
[1737985345365,0.53179288,101020.0,101010.0,0.00226022]
[1737985346423,0.53179288,101020.0,101010.0,0.00240942]
[1737985346697,0.193,101010.0,100990.0,0.00029736]
[1737985346859,1.1410205,101000.0,100990.0,3.6e-07]
[1737985347031,0.321529,100990.0,100980.0,1.5e-07]
[1737985347232,0.321529,100990.0,100970.0,6e-07]
[1737985347233,0.321544,100980.0,100970.0,6e-07]
[1737985347433,0.321558,100970.0,100960.0,3e-07]
[1737985347637,0.58895366,100970.0,100960.0,3e-07]
[1737985347864,0.298617,100930.0,100920.0,0.0001417]
[1737985348107,0.4687913,100930.0,100920.0,0.0001417]
[1737985348313,0.62209486,100930.0,100920.0,0.00199551]
[1737985348732,0.72189485,100930.0,100920.0,0.0001417]
[1737985348962,0.72189485,100930.0,100920.0,0.00199551]
[1737985348963,0.67917613,100930.0,100920.0,0.00199551]
[1737985349164,0.70217613,100930.0,100920.0,0.0001417]
[1737985349793,0.71201089,100930.0,100920.0,0.0001417]
[1737985349987,0.71201089,100930.0,100920.0,0.00199551]
[1737985350211,2.07035818,100930.0,100920.0,0.0001417]
[1737985350418,2.07290412,100930.0,100920.0,0.00199551]
[1737985350627,2.03690412,100930.0,100920.0,7e-07]
[1737985350843,0.641647,100910.0,100900.0,0.1]
[1737985351043,0.90888752,100910.0,100900.0,0.1]
[1737985351275,1.1320575,100910.0,100900.0,0.1]
[1737985351480,0.8120575,100910.0,100900.0,0.1]
[1737985351683,0.7220575,100910.0,100900.0,0.1]
[1737985351889,0.47495056,100910.0,100900.0,0.1]
[1737985352096,0.7016645,100910.0,100900.0,0.1]
[1737985352520,0.7016645,100910.0,100900.0,0.10199273]
[1737985352725,0.7216645,100910.0,100900.0,0.1]
[1737985352919,0.7216645,100910.0,100900.0,0.10199273]
[1737985352920,0.7410213,100910.0,100900.0,0.10199273]
[1737985353056,1.1410213,100910.0,100900.0,0.10199273]
[1737985353261,1.16393006,100910.0,100900.0,0.10199273]
[1737985353463,1.14393006,100910.0,100900.0,0.10199273]
[1737985353692,1.14393006,100910.0,100900.0,0.1]
[1737985353926,1.59793006,100910.0,100900.0,0.1]
[1737985354130,1.59793006,100910.0,100900.0,0.0689077]
[1737985354333,0.731662,100900.0,100890.0,6e-05]
[1737985354708,1.52979712,100900.0,100890.0,6e-05]
[1737985354908,1.43244983,100900.0,100890.0,6e-05]
[1737985355454,1.42244983,100900.0,100890.0,6e-05]
[1737985355651,1.44244983,100900.0,100890.0,6e-05]
[1737985356300,1.04244983,100900.0,100890.0,6e-05]
[1737985356451,1.02244983,100900.0,100890.0,6e-05]
[1737985356653,1.02244983,100900.0,100890.0,0.00227997]
[1737985357060,1.04244983,100900.0,100890.0,0.00227997]
[1737985357272,1.02244983,100900.0,100890.0,0.00227997]
[1737985357474,1.10356221,100900.0,100890.0,0.00227997]
[1737985357673,1.13256221,100900.0,100890.0,0.00227997]
[1737985358092,1.11256221,100900.0,100890.0,0.00227997]
[1737985358690,1.13756221,100900.0,100890.0,0.00227997]
[1737985359090,1.2449095,100900.0,100890.0,6e-05]
[1737985359540,1.2449095,100900.0,100890.0,0.0002016]
[1737985360652,1.14756221,100900.0,100890.0,0.0002016]
[1737985360860,1.13756221,100900.0,100890.0,0.0002016]
[1737985361066,1.07965879,100900.0,100890.0,0.0002016]
[1737985361295,1.05665879,100900.0,100890.0,0.00231588]
[1737985361506,1.49451746,100900.0,100890.0,0.00231588]
[1737985361947,1.49451746,100900.0,100890.0,0.0002016]
[1737985361948,1.09451746,100900.0,100890.0,0.0002016]
[1737985362154,0.51000929,100900.0,100890.0,0.0002016]
[1737985362364,0.36000929,100900.0,100890.0,0.00231588]
[1737985362769,0.114,100900.0,100890.0,0.15099188]
[1737985362970,0.114,100900.0,100890.0,0.23379188]
[1737985363178,0.262662,100900.0,100890.0,0.23379188]
[1737985363384,0.114,100900.0,100890.0,0.23379188]
[1737985363557,0.105,100900.0,100890.0,0.23379188]
[1737985364028,0.114,100900.0,100890.0,0.23379188]
[1737985364229,0.1,100900.0,100890.0,0.23379188]
[1737985364741,0.104,100900.0,100890.0,0.23379188]
[1737985364855,0.104,100900.0,100890.0,0.23479188]
[1737985365061,0.1,100900.0,100890.0,0.23479188]
[1737985366476,0.1,100900.0,100890.0,0.5020324]
[1737985366677,0.1,100900.0,100890.0,0.58271252]
[1737985366881,0.00029736,100910.0,100900.0,0.148662]
[1737985367086,0.00029736,100910.0,100900.0,0.49790098]
[1737985367287,0.00029736,100910.0,100900.0,0.53017259]
[1737985367654,0.00014863,100930.0,100920.0,0.227932]
[1737985367864,0.00014863,100930.0,100920.0,0.32527929]
[1737985368100,0.00014863,100930.0,100920.0,0.22989713]
[1737985368855,0.14876563,100930.0,100920.0,0.23089713]
[1737985369060,0.29876563,100930.0,100920.0,0.08226513]
[1737985369276,0.43397159,100930.0,100920.0,0.00296513]
[1737985369500,0.66152598,100930.0,100920.0,0.00296513]
[1737985369921,0.66152598,100930.0,100920.0,0.001]
[1737985370148,0.62686482,100930.0,100920.0,0.00282482]
[1737985370356,0.45697159,100930.0,100920.0,0.001]
[1737985370586,0.39611292,100930.0,100920.0,0.001]
[1737985370945,0.54511663,100930.0,100910.0,0.346833]
[1737985371121,0.346818,100920.0,100900.0,0.429464]
[1737985371281,0.545005,100920.0,100900.0,0.62767]
[1737985371517,0.545005,100920.0,100900.0,0.825874]
[1737985371726,0.496818,100920.0,100910.0,0.0001416]
[1737985372503,0.496818,100920.0,100910.0,0.1487886]
[1737985372635,0.14907499,100930.0,100920.0,0.148632]
[1737985372831,0.00044599,100930.0,100920.0,0.22963052]
[1737985373033,0.00044599,100930.0,100920.0,0.49637252]
[1737985373287,0.00044599,100930.0,100920.0,0.54427252]
[1737985373813,0.00044599,100930.0,100920.0,0.37437929]
[1737985373940,0.00044599,100930.0,100920.0,0.54427252]
[1737985374706,0.00044599,100930.0,100920.0,0.37437929]
[1737985375040,0.14906299,100930.0,100920.0,0.0805]
[1737985375446,0.15006299,100930.0,100920.0,0.231132]
[1737985375849,0.14906299,100930.0,100920.0,0.0805]
[1737985376096,0.29906299,100930.0,100910.0,0.43523929]
[1737985376298,0.49722599,100930.0,100920.0,0.002]
[1737985376544,0.49722599,100930.0,100920.0,0.00378852]
[1737985376770,0.49722599,100930.0,100920.0,0.15242052]
[1737985377357,0.29906299,100930.0,100920.0,0.15242052]
[1737985377766,0.00044599,100930.0,100920.0,0.15042052]
[1737985378176,0.00144599,100930.0,100920.0,0.15042052]
[1737985378383,0.15006299,100930.0,100920.0,0.15042052]
[1737985378590,0.14906299,100930.0,100920.0,0.15042052]
[1737985378793,0.14906299,100930.0,100920.0,0.15242052]
[1737985380484,0.00044599,100930.0,100920.0,0.25026622]
[1737985380690,0.00044599,100930.0,100920.0,0.45040666]
[1737985380901,0.00044599,100930.0,100920.0,0.18316614]
[1737985381121,0.00044599,100930.0,100920.0,0.28051343]
[1737985381742,0.00044599,100930.0,100920.0,0.53050666]
[1737985381947,0.00044599,100930.0,100920.0,0.55350666]
[1737985383169,0.00044599,100930.0,100920.0,0.36061343]
[1737985383375,0.00044599,100930.0,100920.0,0.00378852]
[1737985383376,0.14906299,100930.0,100920.0,0.00378852]
[1737985383604,0.14906299,100930.0,100920.0,0.15242052]
[1737985383809,0.00044599,100930.0,100920.0,0.152919]
[1737985384023,0.00044599,100930.0,100920.0,0.64535952]
[1737985384214,0.00044599,100930.0,100920.0,0.7749668]
[1737985384344,0.00044599,100930.0,100920.0,0.94486003]
[1737985384761,0.00044599,100930.0,100920.0,0.7749668]
[1737985384975,0.00044599,100930.0,100920.0,0.94486003]
[1737985385193,0.00044599,100930.0,100920.0,0.94286003]
[1737985385393,0.00144599,100930.0,100920.0,0.94286003]
[1737985385600,0.00144599,100930.0,100920.0,0.7729668]
[1737985385804,0.00144599,100930.0,100920.0,0.7629668]
[1737985386051,0.00244599,100930.0,100920.0,0.7749668]
[1737985386539,0.00144599,100930.0,100920.0,0.7429668]
[1737985386689,0.00144599,100930.0,100920.0,0.55007357]
[1737985387065,0.00144599,100930.0,100920.0,0.40007357]
[1737985387261,0.00044599,100930.0,100920.0,0.35377357]
[1737985387697,0.00044599,100930.0,100920.0,0.5276668]
[1737985387900,0.00044599,100930.0,100920.0,0.88056003]
[1737985388106,0.00044599,100930.0,100920.0,0.92256003]
[1737985388314,0.00144599,100930.0,100920.0,0.7616668]
[1737985388534,0.00144599,100930.0,100920.0,0.7646668]
[1737985388739,0.00044599,100930.0,100920.0,0.92556003]
[1737985388951,9.9e-07,100930.0,100920.0,0.94556003]
[1737985389182,9.9e-07,100930.0,100920.0,0.94856003]
[1737985389354,9.9e-07,100930.0,100920.0,0.60877357]
[1737985390001,0.148558,100970.0,100960.0,0.346664]
[1737985390127,0.148558,100970.0,100960.0,0.148566]
[1737985390334,0.5448332,100980.0,100960.0,0.34821648]
[1737985390534,0.5448332,100980.0,100960.0,0.54630548]
[1737985390785,0.148558,100970.0,100960.0,0.34821548]
[1737985390940,0.148558,100970.0,100960.0,0.19964948]
[1737985391339,0.148558,100970.0,100960.0,0.00156048]
[1737985391742,0.149558,100970.0,100960.0,0.00156048]
[1737985392500,0.15079607,100970.0,100960.0,0.00156048]
[1737985392683,0.40114336,100970.0,100960.0,0.00156048]
[1737985392862,0.39990529,100970.0,100960.0,0.00156048]
[1737985393059,0.346695,100960.0,100940.0,0.544844]
[1737985393271,0.544809,100960.0,100940.0,0.346719]
[1737985393468,0.346705,100950.0,100930.0,0.622192]
[1737985393672,0.148588,100950.0,100940.0,0.148603]
[1737985393869,0.544815,100960.0,100940.0,0.544868]
[1737985394188,0.3467,100960.0,100940.0,0.346727]
[1737985394353,0.59700629,100970.0,100950.0,0.346694]
[1737985394554,0.59700429,100970.0,100950.0,0.544802]
[1737985394797,0.148573,100960.0,100950.0,0.14858]
[1737985395001,0.148588,100950.0,100940.0,0.002]
[1737985395206,0.298588,100950.0,100930.0,0.148615]
[1737985395439,0.148603,100940.0,100930.0,0.148615]
[1737985395585,0.298598,100950.0,100930.0,0.34725518]
[1737985395768,0.298598,100950.0,100940.0,0.148603]
[1737985395971,0.496716,100950.0,100940.0,0.003]
[1737985396406,0.694849,100950.0,100930.0,0.346762]
[1737985396617,0.496716,100950.0,100940.0,0.148603]
[1737985396816,0.298588,100950.0,100940.0,0.148603]
[1737985397018,0.15,100950.0,100940.0,0.148603]
[1737985397368,0.00029736,100960.0,100950.0,0.148588]
[1737985397555,0.00029736,100960.0,100950.0,0.52790468]
[1737985397777,0.00029736,100960.0,100950.0,0.35801145]
[1737985398591,0.00029736,100960.0,100950.0,0.52790468]
[1737985398798,0.00029736,100960.0,100950.0,0.55090468]
[1737985399623,0.00021357,100960.0,100950.0,0.55090468]
[1737985399983,0.00021357,100960.0,100950.0,0.56088765]
[1737985400195,0.00021357,100960.0,100950.0,0.56288765]
[1737985400774,0.00121357,100960.0,100950.0,0.56988765]
[1737985400973,0.00121357,100960.0,100950.0,0.37699442]
[1737985401813,0.00121357,100960.0,100950.0,0.39673581]
[1737985402667,0.00121357,100960.0,100950.0,0.56662904]
[1737985403255,0.10121357,100960.0,100950.0,0.74962904]
[1737985403696,0.10121357,100960.0,100950.0,0.94812904]
[1737985405264,0.10121357,100960.0,100950.0,0.93812904]
[1737985405927,0.10121357,100960.0,100950.0,0.94812904]
[1737985406547,0.10121357,100960.0,100950.0,0.94957265]
[1737985406952,0.10121357,100960.0,100950.0,0.93957265]
[1737985407170,0.10121357,100960.0,100950.0,0.94812904]
[1737985407966,0.08140357,100960.0,100950.0,0.96812904]
[1737985408175,5.7e-07,100960.0,100950.0,1.01482904]
[1737985408375,0.1485,101010.0,101000.0,0.198008]
[1737985408674,0.1485,101010.0,101000.0,0.19944826]
[1737985409414,0.67156821,101020.0,101000.0,0.34795526]
[1737985409623,0.00014929,101010.0,101000.0,0.29679555]
[1737985410227,0.00014929,101010.0,101000.0,0.29535529]
[1737985411181,0.00014929,101010.0,101000.0,0.29635529]
[1737985411743,0.00014929,101010.0,101000.0,0.29835529]
[1737985412172,0.00014929,101010.0,101000.0,0.201008]
[1737985412290,0.14864929,101010.0,101000.0,0.201008]
[1737985412900,0.14864929,101010.0,101000.0,0.003]
[1737985413107,0.14988682,101010.0,101000.0,0.003]
[1737985413920,0.14864929,101010.0,101000.0,0.003]
[1737985414319,0.14864929,101010.0,101000.0,0.002]
[1737985414740,0.39599658,101010.0,101000.0,0.003]
[1737985414938,0.39599658,101010.0,101000.0,0.001]
[1737985415339,0.00114929,101010.0,101000.0,0.149514]
[1737985415585,0.00114929,101010.0,101000.0,0.148514]
[1737985416355,0.00114929,101010.0,101000.0,0.41575452]
[1737985416556,0.00114929,101010.0,101000.0,0.24586129]
[1737985416977,0.14964929,101010.0,101000.0,0.148514]
[1737985417388,0.14864929,101010.0,101000.0,0.148514]
[1737985417583,0.14864929,101010.0,101000.0,0.151514]
[1737985418287,0.14864929,101010.0,101000.0,0.152514]
[1737985419109,0.00014929,101010.0,101000.0,0.152514]
[1737985419678,0.00014929,101010.0,101000.0,0.15301053]
[1737985420047,0.00044644,101010.0,101000.0,0.152514]
[1737985422737,0.14894644,101010.0,101000.0,0.004]
[1737985422854,0.15018395,101010.0,101000.0,0.004]
[1737985423876,0.15018395,101010.0,101000.0,0.003]
[1737985424079,0.15018395,101010.0,101000.0,0.004]
[1737985424305,0.14894644,101010.0,101000.0,0.152514]
[1737985424504,0.14894644,101010.0,101000.0,0.149514]
[1737985424711,0.14894644,101010.0,101000.0,0.148514]
[1737985424920,0.14994644,101010.0,101000.0,0.148514]
[1737985425838,0.14994644,101010.0,100990.0,0.544579]
[1737985426041,0.54595744,101010.0,100990.0,0.742606]
[1737985426244,0.34794844,101010.0,101000.0,0.148514]
[1737985426548,0.19944844,101010.0,100990.0,0.544576]
[1737985426747,0.39746244,101010.0,100990.0,0.346549]
[1737985426955,0.148529,100990.0,100980.0,0.20787051]
[1737985427184,0.544586,101000.0,100980.0,0.55445351]
[1737985427387,0.346553,101000.0,100990.0,0.149529]
[1737985427635,0.54498344,101010.0,100990.0,0.3480518]
[1737985427839,0.14895444,101010.0,101000.0,0.148514]
[1737985428038,0.54496144,101010.0,100990.0,0.745607]
[1737985428227,0.00044644,101010.0,101000.0,0.148514]
[1737985429616,0.34696044,101010.0,101000.0,0.148514]
[1737985429857,0.34796044,101010.0,101000.0,0.148514]
[1737985430039,0.54596844,101010.0,100990.0,0.544581]
[1737985430212,0.74397944,101010.0,100990.0,0.544581]
[1737985430420,0.39746444,101010.0,100990.0,0.148529]
[1737985430627,0.74398844,101010.0,100990.0,0.346557]
[1737985430834,0.54597444,101010.0,100990.0,0.347557]
[1737985431034,0.54597444,101010.0,100990.0,0.545584]
[1737985431773,0.34796444,101010.0,101000.0,0.148514]
[1737985431927,0.34696444,101010.0,101000.0,0.148514]
[1737985433397,0.00044644,101010.0,101000.0,0.148514]
[1737985433771,0.00144644,101010.0,101000.0,0.148514]
[1737985433977,0.00144644,101010.0,101000.0,0.31840723]
[1737985434166,0.00144644,101010.0,101000.0,0.34913906]
[1737985434599,0.00144644,101010.0,101000.0,0.17924583]
[1737985435193,0.00144644,101010.0,101000.0,0.18224583]
[1737985435530,0.00144644,101010.0,101000.0,0.148514]
[1737985436351,0.00044644,101010.0,101000.0,0.148514]
[1737985436548,0.00044644,101010.0,101000.0,0.154514]
[1737985436754,0.00144644,101010.0,101000.0,0.154514]
[1737985437169,0.00044644,101010.0,101000.0,0.148514]
[1737985437567,0.00144644,101010.0,101000.0,0.18530949]
[1737985437731,0.00144644,101010.0,101000.0,0.157514]
[1737985438531,0.00144644,101010.0,101000.0,0.009]
[1737985438532,0.29994644,101010.0,101000.0,0.009]
[1737985439494,0.29994644,101010.0,101000.0,0.006]
[1737985439692,0.29994644,101010.0,101000.0,0.154514]
[1737985440121,0.29894644,101010.0,101000.0,0.148514]
[1737985440317,0.15144644,101010.0,101000.0,0.148514]
[1737985440500,0.29994644,101010.0,101000.0,0.148514]
[1737985440899,0.49795644,101010.0,100990.0,0.544586]
[1737985441102,0.148514,101000.0,100990.0,0.148529]
[1737985441315,0.34779563,101000.0,100980.0,0.35654597]
[1737985441500,0.346558,101000.0,100980.0,0.18930344]
[1737985441703,0.148529,100990.0,100970.0,0.396133]
[1737985441901,0.198049,100990.0,100970.0,0.57548639]
[1737985442103,0.544636,100990.0,100970.0,0.57548239]
[1737985442506,0.544636,100990.0,100970.0,0.42693639]
[1737985442507,0.544634,100990.0,100970.0,0.42693639]
[1737985442709,0.148544,100980.0,100970.0,0.22887039]
[1737985442931,0.544643,100990.0,100970.0,0.544681]
[1737985443295,0.148544,100980.0,100970.0,0.198064]
[1737985443631,0.544645,100990.0,100970.0,0.544683]
[1737985443893,0.49659,100990.0,100980.0,0.006]
[1737985444219,0.694637,100990.0,100970.0,0.548682]
[1737985444425,0.0466,101000.0,100980.0,0.148544]
[1737985444622,0.00044644,101010.0,101000.0,0.148514]
[1737985444844,0.00044644,101010.0,101000.0,0.41575452]
[1737985445037,0.00044644,101010.0,101000.0,0.59651923]
[1737985446046,0.00044644,101010.0,101000.0,0.59951923]
[1737985446247,0.00044644,101010.0,101000.0,0.279626]
[1737985446864,0.00044644,101010.0,101000.0,0.19203311]
[1737985447071,0.00044644,101010.0,101000.0,0.1612684]
[1737985447286,0.14994644,101010.0,101000.0,0.1612684]
[1737985447683,0.14894644,101010.0,101000.0,0.1582684]